[Event "*** Titled Tuesday Blitz"]
[Site "Chess.com"]
[Date "2018.11.06"]
[Round "4"]
[White "PeshkaNavalnogo12"]
[Black "Jenia84"]
[Result "1-0"]
[WhiteElo "2461"]
[BlackElo "2230"]
[TimeControl "180+2"]
[EndTime "13:51:35 PST"]
[Termination "PeshkaNavalnogo12 won by resignation"]

1. c4 {[%clk 0:03:01.9]} 1... Nf6 {[%clk 0:02:58.9]} 2. g3 {[%clk 0:03:02.5]}
2... e6 {[%clk 0:02:59.1]} 3. Bg2 {[%clk 0:03:03.4]} 3... Be7 {[%clk 0:02:56.7]}
4. b3 {[%clk 0:03:04.7]} 4... O-O {[%clk 0:02:57.3]} 5. Bb2 {[%clk 0:03:06.6]}
5... c5 {[%clk 0:02:54.8]} 6. e3 {[%clk 0:03:07.5]} 6... Nc6 {[%clk 0:02:55.9]}
7. Ne2 {[%clk 0:03:09]} 7... b6 {[%clk 0:02:56.9]} 8. O-O {[%clk 0:03:10.4]}
8... Bb7 {[%clk 0:02:57.7]} 9. Nbc3 {[%clk 0:03:11.6]} 9... d5 {[%clk
0:02:55.5]} 10. cxd5 {[%clk 0:03:11.5]} 10... Nxd5 {[%clk 0:02:56.1]} 11. Nxd5
{[%clk 0:03:12.2]} 11... exd5 {[%clk 0:02:56.8]} 12. d4 {[%clk 0:03:12.8]} 12...
cxd4 {[%clk 0:02:38.6]} 13. Nxd4 {[%clk 0:03:13.1]} 13... Rc8 {[%clk 0:02:35.4]}
14. Nxc6 {[%clk 0:03:03.9]} 14... Bxc6 {[%clk 0:02:33.5]} 15. Rc1 {[%clk
0:03:00.5]} 15... Re8 {[%clk 0:02:27.6]} 16. Qg4 {[%clk 0:02:46.9]} 16... Bf6
{[%clk 0:02:25.6]} 17. Bxf6 {[%clk 0:02:47.5]} 17... Qxf6 {[%clk 0:02:25.9]} 18.
Rfd1 {[%clk 0:02:47.7]} 18... Qe6 {[%clk 0:02:12]} 19. Qh5 {[%clk 0:02:39.3]}
19... g6 {[%clk 0:02:10.5]} 20. Qh4 {[%clk 0:02:37.2]} 20... Bb7 {[%clk
0:02:07.8]} 21. Bh3 {[%clk 0:02:34.2]} 21... Rxc1 {[%clk 0:02:06.9]} 22. Rxc1
{[%clk 0:02:36.1]} 22... Qd6 {[%clk 0:02:00.9]} 23. Qa4 {[%clk 0:02:26.3]} 23...
Ra8 {[%clk 0:01:51.7]} 24. Qd4 {[%clk 0:02:25.2]} 24... h5 {[%clk 0:01:42.6]}
25. Bg2 {[%clk 0:02:23.5]} 25... Qa3 {[%clk 0:01:39.1]} 26. Rc7 {[%clk
0:02:20.2]} 26... Rb8 {[%clk 0:01:38.9]} 27. Bxd5 {[%clk 0:02:15.3]} 27... Bxd5
{[%clk 0:01:30.8]} 28. Qxd5 {[%clk 0:02:16.1]} 28... Rf8 {[%clk 0:01:31]} 29.
Rc2 {[%clk 0:02:09.3]} 29... Qb4 {[%clk 0:01:28]} 30. h3 {[%clk 0:02:04.6]}
30... a5 {[%clk 0:01:27.9]} 31. Kg2 {[%clk 0:02:05.2]} 31... a4 {[%clk
0:01:28.1]} 32. Rc4 {[%clk 0:02:06.4]} 32... Qe7 {[%clk 0:01:23]} 33. Rxa4
{[%clk 0:02:07.1]} 33... Rd8 {[%clk 0:01:23.9]} 34. Ra8 {[%clk 0:02:08.1]} 34...
Rxa8 {[%clk 0:01:23]} 35. Qxa8+ {[%clk 0:02:10]} 35... Kh7 {[%clk 0:01:24.4]}
36. Qd5 {[%clk 0:02:10.8]} 36... Qa7 {[%clk 0:01:22.2]} 37. b4 {[%clk
0:02:10.1]} 37... Kg7 {[%clk 0:01:21.1]} 38. b5 {[%clk 0:02:08]} 38... Qa3
{[%clk 0:01:14.5]} 39. Qd4+ {[%clk 0:02:08.2]} 39... Kh7 {[%clk 0:01:14.9]} 40.
Qxb6 {[%clk 0:02:09.3]} 40... Qxa2 {[%clk 0:01:16.1]} 41. Qc6 {[%clk 0:02:10.3]}
41... Qb1 {[%clk 0:01:10.3]} 42. b6 {[%clk 0:02:11]} 42... Qb3 {[%clk
0:01:10.7]} 43. b7 {[%clk 0:02:11.9]} 43... Kg7 {[%clk 0:01:10.6]} 44. h4 {[%clk
0:02:06.9]} 44... Kh7 {[%clk 0:01:11]} 45. Qc7 {[%clk 0:02:06.4]} 45... Qd5+
{[%clk 0:01:10.8]} 46. Kg1 {[%clk 0:02:07.6]} 46... Qd1+ {[%clk 0:01:10.6]} 47.
Kh2 {[%clk 0:02:08.6]} 47... Qf3 {[%clk 0:01:11.1]} 48. Kg1 {[%clk 0:02:04.9]}
48... Qd1+ {[%clk 0:01:11.8]} 49. Kg2 {[%clk 0:02:06.2]} 49... Qd5+ {[%clk
0:01:11.6]} 50. e4 {[%clk 0:01:57]} 50... Qxe4+ {[%clk 0:01:10.9]} 51. Kh2
{[%clk 0:01:58]} 51... Qf3 {[%clk 0:01:10]} 52. Qb6 {[%clk 0:01:58.9]} 1-0

[Event "*** Titled Tuesday Blitz"]
[Site "Chess.com"]
[Date "2018.11.06"]
[Round "4"]
[White "dmjjmd"]
[Black "kleinebeer98"]
[Result "1-0"]
[WhiteElo "2327"]
[BlackElo "2599"]
[TimeControl "180+2"]
[EndTime "13:51:40 PST"]
[Termination "dmjjmd won by resignation"]

1. e4 {[%clk 0:03:01.9]} 1... e5 {[%clk 0:02:53.6]} 2. Nf3 {[%clk 0:03:02.9]}
2... Nc6 {[%clk 0:02:54.7]} 3. Bc4 {[%clk 0:03:04.5]} 3... Nf6 {[%clk
0:02:54.9]} 4. d3 {[%clk 0:03:06]} 4... h6 {[%clk 0:02:56.2]} 5. O-O {[%clk
0:03:02.5]} 5... d6 {[%clk 0:02:57]} 6. Re1 {[%clk 0:03:02.4]} 6... Qe7 {[%clk
0:02:56.3]} 7. a4 {[%clk 0:03:02.7]} 7... Be6 {[%clk 0:02:56.4]} 8. Bxe6 {[%clk
0:02:58.4]} 8... Qxe6 {[%clk 0:02:58.3]} 9. Nc3 {[%clk 0:02:57.1]} 9... g6
{[%clk 0:02:44.7]} 10. d4 {[%clk 0:02:48.4]} 10... exd4 {[%clk 0:02:41.8]} 11.
Nxd4 {[%clk 0:02:50.3]} 11... Nxd4 {[%clk 0:02:34.9]} 12. Qxd4 {[%clk
0:02:52.2]} 12... Bg7 {[%clk 0:02:34.8]} 13. Nd5 {[%clk 0:02:52.8]} 13... O-O-O
{[%clk 0:02:12.7]} 14. Bd2 {[%clk 0:02:36.1]} 14... Kb8 {[%clk 0:02:03.8]} 15.
a5 {[%clk 0:02:31.8]} 15... a6 {[%clk 0:01:49.5]} 16. Ra3 {[%clk 0:02:28.9]}
16... Rhe8 {[%clk 0:01:47.2]} 17. Nxc7 {[%clk 0:02:18.5]} 17... Kxc7 {[%clk
0:01:43]} 18. Qb6+ {[%clk 0:02:19.2]} 18... Kb8 {[%clk 0:01:24.4]} 19. Rb3
{[%clk 0:01:45.4]} 19... Rd7 {[%clk 0:01:22.8]} 20. Be3 {[%clk 0:01:45.2]} 20...
Rc7 {[%clk 0:01:02.8]} 21. Qxa6 {[%clk 0:01:38.4]} 21... Nxe4 {[%clk 0:00:51.5]}
22. Qa7+ {[%clk 0:01:30.2]} 22... Kc8 {[%clk 0:00:52.2]} 23. Bb6 {[%clk
0:01:28.8]} 23... Qd5 {[%clk 0:00:41.1]} 24. Bxc7 {[%clk 0:01:17.5]} 24... Kxc7
{[%clk 0:00:43]} 25. a6 {[%clk 0:01:18.6]} 25... Bd4 {[%clk 0:00:40.5]} 26.
Rxb7+ {[%clk 0:01:14.1]} 26... Kc6 {[%clk 0:00:41.6]} 27. Rc7+ {[%clk
0:01:12.8]} 27... Kb5 {[%clk 0:00:43.1]} 28. c4+ {[%clk 0:01:09]} 28... Ka5
{[%clk 0:00:33]} 29. cxd5 {[%clk 0:01:01.6]} 29... Bxa7 {[%clk 0:00:32.9]} 30.
Rxa7 {[%clk 0:01:03]} 30... Rc8 {[%clk 0:00:32.5]} 31. f3 {[%clk 0:00:56.6]}
31... Nd2 {[%clk 0:00:33.6]} 32. Ra1+ {[%clk 0:00:54.2]} 32... Kb4 {[%clk
0:00:29.6]} 33. Rb7+ {[%clk 0:00:55.6]} 33... Kc5 {[%clk 0:00:29.6]} 34. Rc1+
{[%clk 0:00:55.9]} 34... Nc4 {[%clk 0:00:31]} 35. b3 {[%clk 0:00:56.2]} 1-0

[Event "*** Titled Tuesday Blitz"]
[Site "Chess.com"]
[Date "2018.11.06"]
[Round "4"]
[White "TrimitziosP7"]
[Black "Godzillator"]
[Result "1-0"]
[WhiteElo "2685"]
[BlackElo "2378"]
[TimeControl "180+2"]
[EndTime "13:51:46 PST"]
[Termination "TrimitziosP7 won by resignation"]

1. Nf3 {[%clk 0:03:01.9]} 1... d5 {[%clk 0:03:00.4]} 2. c4 {[%clk 0:03:03.8]}
2... c6 {[%clk 0:03:01.1]} 3. e3 {[%clk 0:03:04.2]} 3... Nf6 {[%clk 0:03:02]} 4.
Nc3 {[%clk 0:03:05.4]} 4... a6 {[%clk 0:03:03]} 5. d4 {[%clk 0:02:51.8]} 5...
Bf5 {[%clk 0:03:03.2]} 6. Bd3 {[%clk 0:02:45.2]} 6... Bxd3 {[%clk 0:03:03.7]} 7.
Qxd3 {[%clk 0:02:47.1]} 7... e6 {[%clk 0:03:04.8]} 8. e4 {[%clk 0:02:47.4]} 8...
dxe4 {[%clk 0:03:02.4]} 9. Nxe4 {[%clk 0:02:49.3]} 9... Nxe4 {[%clk 0:03:02.6]}
10. Qxe4 {[%clk 0:02:51.2]} 10... Bb4+ {[%clk 0:03:03.2]} 11. Bd2 {[%clk
0:02:52]} 11... Bxd2+ {[%clk 0:03:03.9]} 12. Nxd2 {[%clk 0:02:53.9]} 12... Nd7
{[%clk 0:03:04.1]} 13. O-O {[%clk 0:02:54.7]} 13... Nf6 {[%clk 0:03:05]} 14. Qe3
{[%clk 0:02:55.7]} 14... O-O {[%clk 0:03:05.7]} 15. b3 {[%clk 0:02:55.5]} 15...
Qa5 {[%clk 0:03:02.5]} 16. Nf3 {[%clk 0:02:54.9]} 16... Rad8 {[%clk 0:03:02.5]}
17. h3 {[%clk 0:02:55.1]} 17... Rd6 {[%clk 0:03:01.6]} 18. Qe5 {[%clk
0:02:54.1]} 18... Qa3 {[%clk 0:02:54.3]} 19. Rfe1 {[%clk 0:02:49.7]} 19... Rfd8
{[%clk 0:02:54.2]} 20. Re2 {[%clk 0:02:48.8]} 20... h6 {[%clk 0:02:54.1]} 21.
Rd1 {[%clk 0:02:47.4]} 21... c5 {[%clk 0:02:50.5]} 22. Rdd2 {[%clk 0:02:36]}
22... cxd4 {[%clk 0:02:50.5]} 23. Rxd4 {[%clk 0:02:37.9]} 23... Rxd4 {[%clk
0:02:48]} 24. Nxd4 {[%clk 0:02:39.8]} 24... Qc1+ {[%clk 0:02:48.5]} 25. Kh2
{[%clk 0:02:39.3]} 25... Qa1 {[%clk 0:02:47.2]} 26. Nf3 {[%clk 0:02:30]} 26...
Qxe5+ {[%clk 0:02:44.3]} 27. Nxe5 {[%clk 0:02:31.9]} 27... Kf8 {[%clk
0:02:41.3]} 28. Kg3 {[%clk 0:02:32.9]} 28... Ke7 {[%clk 0:02:42.2]} 29. Kf3
{[%clk 0:02:34.1]} 29... Rd1 {[%clk 0:02:39.2]} 30. Ke3 {[%clk 0:02:35]} 30...
Nd7 {[%clk 0:02:36.8]} 31. Nd3 {[%clk 0:02:34.1]} 31... f6 {[%clk 0:02:31.4]}
32. Rd2 {[%clk 0:02:34.9]} 32... Ra1 {[%clk 0:02:26.5]} 33. f4 {[%clk
0:02:34.2]} 33... g5 {[%clk 0:02:23.8]} 34. Re2 {[%clk 0:02:31.8]} 34... Kd6
{[%clk 0:02:20.1]} 35. fxg5 {[%clk 0:02:26.7]} 35... hxg5 {[%clk 0:02:20.3]} 36.
Kd4 {[%clk 0:02:28.6]} 36... Rd1 {[%clk 0:02:19.7]} 37. b4 {[%clk 0:02:26.5]}
37... Ne5 {[%clk 0:02:19.3]} 38. c5+ {[%clk 0:02:26.5]} 38... Kc6 {[%clk
0:02:18.7]} 39. Re3 {[%clk 0:02:27.9]} 39... Kb5 {[%clk 0:02:19.1]} 40. a3
{[%clk 0:02:28.2]} 40... Ka4 {[%clk 0:02:19.4]} 41. Kc3 {[%clk 0:02:17.3]} 41...
Nxd3 {[%clk 0:02:07.9]} 42. Rxd3 {[%clk 0:02:19.2]} 42... Rg1 {[%clk 0:02:08.5]}
43. Re3 {[%clk 0:02:08.1]} 43... e5 {[%clk 0:01:59.9]} 44. Rf3 {[%clk
0:02:05.2]} 44... Rxg2 {[%clk 0:02:00.8]} 45. Rxf6 {[%clk 0:02:06.2]} 45... Rg3+
{[%clk 0:02:01.8]} 46. Kc4 {[%clk 0:02:07.7]} 46... Kxa3 {[%clk 0:01:58.3]} 47.
Rb6 {[%clk 0:02:09.6]} 47... Rxh3 {[%clk 0:01:57.7]} 48. Rxb7 {[%clk 0:02:09.8]}
48... g4 {[%clk 0:01:57.2]} 49. c6 {[%clk 0:02:09.8]} 49... Rh1 {[%clk 0:01:57]}
50. Kd5 {[%clk 0:02:04]} 50... Rc1 {[%clk 0:01:55.9]} 51. b5 {[%clk 0:02:01.8]}
51... axb5 {[%clk 0:01:55.8]} 52. Rxb5 {[%clk 0:02:03.7]} 52... g3 {[%clk
0:01:55.3]} 53. Ra5+ {[%clk 0:01:58.8]} 53... Kb4 {[%clk 0:01:54.1]} 54. Ra2
{[%clk 0:01:59]} 54... Kb3 {[%clk 0:01:45.7]} 55. Rg2 {[%clk 0:01:58.9]} 55...
Rc3 {[%clk 0:01:46.1]} 56. Kd6 {[%clk 0:01:56]} 56... e4 {[%clk 0:01:46.9]} 57.
c7 {[%clk 0:01:56.9]} 57... Rd3+ {[%clk 0:01:40.3]} 58. Ke5 {[%clk 0:01:51.2]}
58... Kb4 {[%clk 0:01:33.2]} 59. c8=Q {[%clk 0:01:50.1]} 1-0

[Event "*** Titled Tuesday Blitz"]
[Site "Chess.com"]
[Date "2018.11.06"]
[Round "4"]
[White "chessdjw"]
[Black "Alexander_Donchenko"]
[Result "1-0"]
[WhiteElo "2600"]
[BlackElo "2728"]
[TimeControl "180+2"]
[EndTime "13:51:59 PST"]
[Termination "chessdjw won by checkmate"]

1. d4 {[%clk 0:03:01.9]} 1... Nf6 {[%clk 0:03:00.4]} 2. c4 {[%clk 0:03:02.7]}
2... d6 {[%clk 0:03:00.9]} 3. Nf3 {[%clk 0:03:03.9]} 3... c6 {[%clk 0:03:00.4]}
4. Nc3 {[%clk 0:03:04.2]} 4... Bf5 {[%clk 0:03:01.4]} 5. Nh4 {[%clk 0:03:01.9]}
5... Bd7 {[%clk 0:03:01.7]} 6. e4 {[%clk 0:03:02.9]} 6... e5 {[%clk 0:02:59.4]}
7. Nf3 {[%clk 0:03:04.5]} 7... Bg4 {[%clk 0:03:00.1]} 8. dxe5 {[%clk 0:03:00.1]}
8... Bxf3 {[%clk 0:03:00.2]} 9. gxf3 {[%clk 0:02:54.5]} 9... dxe5 {[%clk
0:03:01.2]} 10. Qxd8+ {[%clk 0:02:54.6]} 10... Kxd8 {[%clk 0:03:03.1]} 11. f4
{[%clk 0:02:47.1]} 11... Bd6 {[%clk 0:02:58.8]} 12. fxe5 {[%clk 0:02:29]} 12...
Bxe5 {[%clk 0:03:00.7]} 13. Bg2 {[%clk 0:02:20.3]} 13... Nbd7 {[%clk 0:02:59.1]}
14. f4 {[%clk 0:02:19.1]} 14... Bxc3+ {[%clk 0:02:59.8]} 15. bxc3 {[%clk
0:02:20.8]} 15... Nxe4 {[%clk 0:03:00.4]} 16. f5 {[%clk 0:01:39.7]} 16... Re8
{[%clk 0:02:36.7]} 17. O-O {[%clk 0:01:40.1]} 17... Ndc5 {[%clk 0:02:35.1]} 18.
Bf4 {[%clk 0:01:19.5]} 18... Ke7 {[%clk 0:02:29.9]} 19. Rae1 {[%clk 0:00:51.9]}
19... Kf8 {[%clk 0:02:27.9]} 20. f6 {[%clk 0:00:53.1]} 20... g5 {[%clk
0:02:11.1]} 21. Be3 {[%clk 0:00:40.8]} 21... Nd3 {[%clk 0:02:10.9]} 22. Rd1
{[%clk 0:00:29]} 22... Rad8 {[%clk 0:02:10.6]} 23. Bxa7 {[%clk 0:00:24.1]} 23...
Nxc3 {[%clk 0:02:00.6]} 24. Rd2 {[%clk 0:00:25]} 24... h6 {[%clk 0:01:49.8]} 25.
Bb6 {[%clk 0:00:17.2]} 25... Re2 {[%clk 0:01:40.1]} 26. Rfd1 {[%clk 0:00:08.9]}
26... Nxd1 {[%clk 0:01:08.2]} 27. Rxe2 {[%clk 0:00:10.2]} 27... Re8 {[%clk
0:01:09.6]} 28. Rd2 {[%clk 0:00:10.1]} 28... N1b2 {[%clk 0:00:59.3]} 29. Bd4
{[%clk 0:00:10.7]} 29... Re1+ {[%clk 0:00:43.1]} 30. Bf1 {[%clk 0:00:11.6]}
30... Rb1 {[%clk 0:00:45]} 31. Bxb2 {[%clk 0:00:10.3]} 31... Nxb2 {[%clk
0:00:45.7]} 32. Rd8# {[%clk 0:00:11.2]} 1-0

[Event "*** Titled Tuesday Blitz"]
[Site "Chess.com"]
[Date "2018.11.06"]
[Round "4"]
[White "woodhy"]
[Black "VerdeNotte"]
[Result "0-1"]
[WhiteElo "2435"]
[BlackElo "2816"]
[TimeControl "180+2"]
[EndTime "13:52:03 PST"]
[Termination "VerdeNotte won by resignation"]

1. e4 {[%clk 0:01:13]} 1... c5 {[%clk 0:02:57]} 2. Nf3 {[%clk 0:01:12]} 2... d6
{[%clk 0:02:58.1]} 3. g3 {[%clk 0:01:08.3]} 3... Nf6 {[%clk 0:02:58.8]} 4. Nc3
{[%clk 0:01:07.1]} 4... Nc6 {[%clk 0:02:58.6]} 5. Bg2 {[%clk 0:01:06.1]} 5... e5
{[%clk 0:02:59.3]} 6. O-O {[%clk 0:01:05.8]} 6... Be7 {[%clk 0:02:54.3]} 7. d3
{[%clk 0:01:07]} 7... O-O {[%clk 0:02:53.2]} 8. Bg5 {[%clk 0:01:08.2]} 8... Ne8
{[%clk 0:02:39.2]} 9. Bxe7 {[%clk 0:01:08.5]} 9... Nxe7 {[%clk 0:02:41.1]} 10.
Nd5 {[%clk 0:01:10.2]} 10... Nxd5 {[%clk 0:02:41.8]} 11. exd5 {[%clk 0:01:12.1]}
11... Bg4 {[%clk 0:02:42.3]} 12. Qd2 {[%clk 0:01:12.5]} 12... Bxf3 {[%clk
0:02:43.4]} 13. Bxf3 {[%clk 0:01:13.3]} 13... f5 {[%clk 0:02:44.6]} 14. b4
{[%clk 0:01:12.1]} 14... b6 {[%clk 0:02:43.1]} 15. a4 {[%clk 0:01:11.8]} 15...
a5 {[%clk 0:02:38.4]} 16. bxa5 {[%clk 0:01:12]} 16... Rxa5 {[%clk 0:02:35.6]}
17. Rfb1 {[%clk 0:01:13.2]} 17... Rf7 {[%clk 0:02:36.4]} 18. Rb2 {[%clk
0:01:09]} 18... Rfa7 {[%clk 0:02:37.3]} 19. Rab1 {[%clk 0:01:10.1]} 19... R7a6
{[%clk 0:02:35.4]} 20. Be2 {[%clk 0:01:11.5]} 20... Rxa4 {[%clk 0:02:34.8]} 21.
d4 {[%clk 0:01:13]} 21... Rxd4 {[%clk 0:02:35.4]} 22. Qc3 {[%clk 0:01:08.3]}
22... c4 {[%clk 0:02:30.8]} 23. Rb4 {[%clk 0:00:51.4]} 23... Nf6 {[%clk
0:01:58.1]} 24. Bxc4 {[%clk 0:00:46.9]} 24... Ra8 {[%clk 0:01:59.1]} 25. Bb3
{[%clk 0:00:46.6]} 25... Rc8 {[%clk 0:01:54.2]} 26. Qe1 {[%clk 0:00:42.1]} 26...
Re4 {[%clk 0:01:52.4]} 27. Qd2 {[%clk 0:00:37.2]} 27... Rxb4 {[%clk 0:01:36.9]}
28. Qxb4 {[%clk 0:00:37.8]} 28... Qc7 {[%clk 0:01:35.3]} 29. Ba4 {[%clk
0:00:20.5]} 29... Qc4 {[%clk 0:01:12.8]} 30. Bc6 {[%clk 0:00:18]} 30... Qxb4
{[%clk 0:01:12.8]} 31. Rxb4 {[%clk 0:00:19.9]} 31... Rb8 {[%clk 0:01:12.4]} 32.
Ra4 {[%clk 0:00:20.7]} 32... Kf8 {[%clk 0:01:10.5]} 33. Ra7 {[%clk 0:00:21.8]}
33... b5 {[%clk 0:01:11.4]} 34. Kf1 {[%clk 0:00:22.4]} 34... b4 {[%clk
0:01:12.7]} 35. Ra6 {[%clk 0:00:23.2]} 35... b3 {[%clk 0:01:13]} 36. cxb3 {[%clk
0:00:25.1]} 36... Rxb3 {[%clk 0:01:14.5]} 37. Ba8 {[%clk 0:00:27]} 37... Ne4
{[%clk 0:01:13.5]} 38. f3 {[%clk 0:00:26.1]} 38... Rxf3+ {[%clk 0:01:14.1]} 39.
Ke2 {[%clk 0:00:27.3]} 39... Rf2+ {[%clk 0:01:15.4]} 40. Ke3 {[%clk 0:00:28.4]}
40... Rxh2 {[%clk 0:01:17.1]} 41. g4 {[%clk 0:00:28.4]} 41... Rh3+ {[%clk
0:01:17.8]} 42. Ke2 {[%clk 0:00:29.5]} 42... f4 {[%clk 0:01:19.3]} 43. Ra3
{[%clk 0:00:27.8]} 43... Rxa3 {[%clk 0:01:19.4]} 0-1

[Event "*** Titled Tuesday Blitz"]
[Site "Chess.com"]
[Date "2018.11.06"]
[Round "4"]
[White "BillForster"]
[Black "Perecke"]
[Result "0-1"]
[WhiteElo "1699"]
[BlackElo "1986"]
[TimeControl "180+2"]
[EndTime "13:52:04 PST"]
[Termination "Perecke won by resignation"]

1. d4 {[%clk 0:03:01.9]} 1... d5 {[%clk 0:02:59.5]} 2. c4 {[%clk 0:03:01.5]}
2... e6 {[%clk 0:03:00.4]} 3. Nc3 {[%clk 0:03:01.3]} 3... Nf6 {[%clk 0:03:01.1]}
4. cxd5 {[%clk 0:03:00.8]} 4... exd5 {[%clk 0:03:01.7]} 5. Bg5 {[%clk
0:03:01.5]} 5... Be7 {[%clk 0:03:02.5]} 6. e3 {[%clk 0:03:00.6]} 6... h6 {[%clk
0:03:00.8]} 7. Bh4 {[%clk 0:03:00.1]} 7... O-O {[%clk 0:03:02.1]} 8. Bd3 {[%clk
0:02:58.2]} 8... c6 {[%clk 0:03:02.7]} 9. Qc2 {[%clk 0:02:49.8]} 9... Re8 {[%clk
0:03:03.4]} 10. Nf3 {[%clk 0:02:47.8]} 10... Ne4 {[%clk 0:03:04.1]} 11. Bxe7
{[%clk 0:02:45.6]} 11... Qxe7 {[%clk 0:03:06]} 12. O-O {[%clk 0:02:44.2]} 12...
Bf5 {[%clk 0:03:01.1]} 13. Rab1 {[%clk 0:02:20.7]} 13... Nd7 {[%clk 0:02:59.8]}
14. b4 {[%clk 0:02:20.2]} 14... Ndf6 {[%clk 0:02:58.3]} 15. b5 {[%clk
0:02:11.1]} 15... Rab8 {[%clk 0:02:40.3]} 16. bxc6 {[%clk 0:02:06.2]} 16... bxc6
{[%clk 0:02:38.4]} 17. Ne5 {[%clk 0:01:57.1]} 17... Qa3 {[%clk 0:01:39.5]} 18.
Nxe4 {[%clk 0:01:20.3]} 18... dxe4 {[%clk 0:01:28.3]} 19. Bc4 {[%clk 0:01:14.2]}
19... Be6 {[%clk 0:01:18.9]} 20. Nxc6 {[%clk 0:01:05.5]} 20... Rbc8 {[%clk
0:01:18.4]} 21. Ne5 {[%clk 0:00:55.5]} 21... Bxc4 {[%clk 0:00:47.7]} 22. Nxc4
{[%clk 0:00:51.9]} 22... Qa6 {[%clk 0:00:48.2]} 23. Rfc1 {[%clk 0:00:43]} 23...
Rc7 {[%clk 0:00:25.1]} 24. Qb3 {[%clk 0:00:43.8]} 24... Rec8 {[%clk 0:00:23.9]}
25. Qb4 {[%clk 0:00:16.2]} 25... Rxc4 {[%clk 0:00:22]} 26. Rxc4 {[%clk
0:00:16.2]} 26... Qxc4 {[%clk 0:00:23.9]} 27. Qxc4 {[%clk 0:00:15]} 27... Rxc4
{[%clk 0:00:25.8]} 28. Rb8+ {[%clk 0:00:14.4]} 28... Kh7 {[%clk 0:00:26.3]} 0-1

[Event "*** Titled Tuesday Blitz"]
[Site "Chess.com"]
[Date "2018.11.06"]
[Round "4"]
[White "NemtsevIgor"]
[Black "Koksik_13"]
[Result "0-1"]
[WhiteElo "2385"]
[BlackElo "2704"]
[TimeControl "180+2"]
[EndTime "13:52:05 PST"]
[Termination "Koksik_13 won by resignation"]

1. e4 {[%clk 0:03:01.9]} 1... e6 {[%clk 0:01:57]} 2. d4 {[%clk 0:03:00.7]} 2...
d5 {[%clk 0:01:58.4]} 3. Be3 {[%clk 0:03:01.4]} 3... dxe4 {[%clk 0:01:56.2]} 4.
f3 {[%clk 0:03:01.7]} 4... Nf6 {[%clk 0:01:50.2]} 5. Nc3 {[%clk 0:03:01.3]} 5...
b6 {[%clk 0:01:48.9]} 6. fxe4 {[%clk 0:02:54]} 6... Bb7 {[%clk 0:01:49.8]} 7.
Bd3 {[%clk 0:02:51.8]} 7... Bb4 {[%clk 0:01:49.8]} 8. Nf3 {[%clk 0:02:33.7]}
8... Nxe4 {[%clk 0:01:41.5]} 9. O-O {[%clk 0:02:32.1]} 9... Nf6 {[%clk
0:01:15.5]} 10. Ne5 {[%clk 0:02:25.1]} 10... Nbd7 {[%clk 0:01:10.1]} 11. Qe2
{[%clk 0:02:18.4]} 11... Bxc3 {[%clk 0:01:07]} 12. bxc3 {[%clk 0:02:19.1]} 12...
Nxe5 {[%clk 0:01:07.7]} 13. dxe5 {[%clk 0:02:20.1]} 13... Nd5 {[%clk 0:01:09.2]}
14. Rad1 {[%clk 0:02:06.1]} 14... Qh4 {[%clk 0:01:02.1]} 15. Bf2 {[%clk
0:01:59.1]} 15... Qg5 {[%clk 0:00:59.1]} 16. Be4 {[%clk 0:01:51.2]} 16... Nxc3
{[%clk 0:00:37.8]} 17. Qd3 {[%clk 0:01:12.3]} 17... Bxe4 {[%clk 0:00:28.1]} 18.
Qd7+ {[%clk 0:01:06.4]} 18... Kf8 {[%clk 0:00:28.6]} 19. Bg3 {[%clk 0:01:07.6]}
19... Ne2+ {[%clk 0:00:28.4]} 20. Kh1 {[%clk 0:01:04.4]} 20... Nxg3+ {[%clk
0:00:28.5]} 21. hxg3 {[%clk 0:01:05.6]} 21... Qe7 {[%clk 0:00:16.2]} 22. Qd4
{[%clk 0:00:59.4]} 22... Bb7 {[%clk 0:00:16]} 23. Rf4 {[%clk 0:01:00.5]} 23...
Kg8 {[%clk 0:00:15.2]} 24. Rdf1 {[%clk 0:01:01.3]} 24... Rf8 {[%clk 0:00:16.6]}
25. Qf2 {[%clk 0:00:59.8]} 25... h5 {[%clk 0:00:17.2]} 26. Qe3 {[%clk
0:00:45.7]} 26... h4 {[%clk 0:00:18]} 27. g4 {[%clk 0:00:45.7]} 27... h3 {[%clk
0:00:19.1]} 0-1

[Event "*** Titled Tuesday Blitz"]
[Site "Chess.com"]
[Date "2018.11.06"]
[Round "4"]
[White "abubakrtagelsir"]
[Black "wonderfultime"]
[Result "0-1"]
[WhiteElo "2363"]
[BlackElo "2811"]
[TimeControl "180+2"]
[EndTime "13:52:13 PST"]
[Termination "wonderfultime won by resignation"]

1. e4 {[%clk 0:03:01.9]} 1... c5 {[%clk 0:03:00.6]} 2. Nc3 {[%clk 0:02:56.6]}
2... Nc6 {[%clk 0:02:59.2]} 3. f4 {[%clk 0:02:56.8]} 3... g6 {[%clk 0:02:59.8]}
4. Nf3 {[%clk 0:02:56.5]} 4... Bg7 {[%clk 0:03:01.4]} 5. Bb5 {[%clk 0:02:56.2]}
5... Nd4 {[%clk 0:03:02.5]} 6. O-O {[%clk 0:02:55.7]} 6... e6 {[%clk 0:03:03]}
7. d3 {[%clk 0:02:53.2]} 7... Ne7 {[%clk 0:02:58.1]} 8. Nxd4 {[%clk 0:02:53.3]}
8... cxd4 {[%clk 0:02:58.7]} 9. Ne2 {[%clk 0:02:53.6]} 9... O-O {[%clk
0:02:59.5]} 10. Ba4 {[%clk 0:02:51.7]} 10... d6 {[%clk 0:02:57.4]} 11. Qe1
{[%clk 0:02:50.2]} 11... Bd7 {[%clk 0:02:44.8]} 12. Bb3 {[%clk 0:02:48.7]} 12...
b5 {[%clk 0:02:40.9]} 13. Qf2 {[%clk 0:02:24.3]} 13... Qb6 {[%clk 0:02:41.3]}
14. a3 {[%clk 0:02:19.2]} 14... Rac8 {[%clk 0:02:31.4]} 15. Kh1 {[%clk
0:02:17.5]} 15... Qc5 {[%clk 0:02:27.7]} 16. Bd2 {[%clk 0:02:16.6]} 16... Kh8
{[%clk 0:02:27.3]} 17. Bb4 {[%clk 0:02:13.4]} 17... Qb6 {[%clk 0:02:27]} 18. e5
{[%clk 0:02:13]} 18... Nf5 {[%clk 0:02:26.8]} 19. Ng3 {[%clk 0:01:55.8]} 19...
Ne3 {[%clk 0:02:23.2]} 20. Rfe1 {[%clk 0:01:53.6]} 20... dxe5 {[%clk 0:02:19.7]}
21. Bxf8 {[%clk 0:01:51.7]} 21... Rxf8 {[%clk 0:02:21.6]} 22. fxe5 {[%clk
0:01:50.9]} 22... Bxe5 {[%clk 0:02:23.1]} 23. c3 {[%clk 0:01:46.9]} 23... Bc6
{[%clk 0:02:24.5]} 24. Ne4 {[%clk 0:01:43]} 24... Kg7 {[%clk 0:02:19.1]} 25.
cxd4 {[%clk 0:01:39.8]} 25... Bxd4 {[%clk 0:02:21]} 26. Rxe3 {[%clk 0:01:38.9]}
26... Bxe3 {[%clk 0:02:22.2]} 27. Qf6+ {[%clk 0:01:38.7]} 27... Kg8 {[%clk
0:02:23.6]} 28. Rf1 {[%clk 0:01:23.4]} 28... Bxe4 {[%clk 0:02:00.8]} 29. dxe4
{[%clk 0:01:20.9]} 29... Bd4 {[%clk 0:01:56.9]} 30. e5 {[%clk 0:01:19.5]} 30...
Bxb2 {[%clk 0:01:54.1]} 31. h4 {[%clk 0:01:14.5]} 31... Qd8 {[%clk 0:01:31.1]}
32. a4 {[%clk 0:01:01.6]} 32... bxa4 {[%clk 0:01:25.6]} 33. Bxa4 {[%clk
0:01:00.6]} 33... Bxe5 {[%clk 0:01:25.4]} 34. Qxd8 {[%clk 0:00:32.1]} 34... Rxd8
{[%clk 0:01:25.9]} 35. g4 {[%clk 0:00:29.6]} 35... Rd4 {[%clk 0:01:23.1]} 36.
Bd1 {[%clk 0:00:28.2]} 36... a5 {[%clk 0:01:22.6]} 37. Bf3 {[%clk 0:00:26.7]}
37... a4 {[%clk 0:01:23.4]} 38. Rf2 {[%clk 0:00:23.7]} 38... a3 {[%clk
0:01:22.4]} 39. Ra2 {[%clk 0:00:23.1]} 39... Rd3 {[%clk 0:01:23]} 40. Kg2 {[%clk
0:00:22.4]} 40... Bb2 {[%clk 0:01:24.2]} 41. h5 {[%clk 0:00:21.9]} 41... Kg7
{[%clk 0:01:25.2]} 42. hxg6 {[%clk 0:00:22.2]} 42... hxg6 {[%clk 0:01:27.1]} 0-1